fUST/lending_fUST_20250707
["ID","MTS","AMOUNT","RATE_DAILY","PERIOD"]
[370038824,1751856647596,-611.89,0.00023917,2]
[370038825,1751856647606,-460.0,0.00023917,2]
[370038826,1751856647617,-634.33,0.00023917,2]
[370038827,1751856647628,-838.52,0.00023917,2]
[370038828,1751856647638,-460.0,0.00023917,2]
[370038829,1751856647647,-460.0,0.00023917,2]
[370038830,1751856647659,-786.58,0.0002392,2]
[370038831,1751856647670,-522.45,0.00023921,2]
[370038832,1751856647681,-1615.43,0.00023921,2]
[370038833,1751856647691,-460.0,0.00023921,2]
[370038834,1751856647701,-1294.79,0.00023924,2]
[370038835,1751856647710,-685.74,0.00023924,2]
[370038836,1751856647719,-674.13,0.00023932,2]
[370038837,1751856647730,-151.0,0.00023945,6]
[370038838,1751856647740,-2304.83774471,0.00023969,10]
[370038839,1751856647749,-160.0,0.00024,7]
[370038840,1751856647758,-73361.25,0.00024,7]
[370038841,1751856647768,-160.0,0.00024,7]
[370038842,1751856647777,-837.79946008,0.00024,7]
[370038843,1751856647787,-160.0,0.00024,7]
[370038844,1751856647796,-230.48668418,0.00024,7]
[370038845,1751856647806,-160.0,0.00024,7]
[370038846,1751856647815,-350.0,0.00024068,2]
[370038847,1751856647825,-450.0,0.00024068,2]
[370038848,1751856647834,-5370.95,0.000241,7]
[370038849,1751856647843,-134829.11,0.000241,2]
[370038850,1751856647853,-1498.20536688,0.00024145,2]
[370038851,1751856647863,-2500.0,0.00024164,2]
[370038852,1751856647872,-3000.0,0.00024164,2]
[370038853,1751856647881,-425.0,0.00024164,7]
[370038854,1751856647890,-611.89,0.00024191,2]
[370038855,1751856647899,-460.0,0.00024191,2]
[370038856,1751856647909,-634.33,0.00024191,2]
[370038857,1751856647918,-838.52,0.00024191,2]
[370038858,1751856647927,-357.26215504,0.00024191,2]
[370038859,1751856647937,-460.0,0.00024191,2]
[370038860,1751856647946,-786.58,0.00024194,2]
[370038861,1751856647956,-522.45,0.00024195,2]
[370038862,1751856647966,-1615.43,0.00024195,2]
[370038863,1751856647975,-460.0,0.00024195,2]
[370038864,1751856647984,-207.50024045,0.00024196,2]
[370038865,1751856647994,-1294.79,0.00024198,2]
[370038866,1751856648005,-685.74,0.00024198,2]
[370038867,1751856648014,-674.13,0.00024206,2]
[370038868,1751856648024,-2304.83774471,0.00024245,10]
[370038869,1751856648033,-1498.20536688,0.00024268,2]
[370038870,1751856648043,-980.35,0.000243,7]
[370038871,1751856648052,-5000.0,0.00024316,2]
[370038872,1751856648061,-845.0,0.00024382,2]
[370038873,1751856648071,-503.98954517,0.0002439,9]
[370038874,1751856648080,-1498.20536688,0.00024391,2]
[370038875,1751856648089,-151.0,0.00024418,7]
[370038876,1751856648098,-160.0,0.00024444,5]
[370038877,1751856648108,-611.89,0.00024465,2]
[370038878,1751856648117,-195.41691578,0.00024465,2]
[370038879,1751856648127,-634.33,0.00024465,2]
[370038880,1751856648136,-838.52,0.00024465,2]
[370038881,1751856648146,-602.342648,0.00024465,2]
[370038882,1751856648156,-786.58,0.00024468,2]
[370038883,1751856648165,-522.45,0.00024469,2]
[370038884,1751856648175,-1615.43,0.00024469,2]
[370038885,1751856648184,-460.0,0.00024469,2]
[370038886,1751856648193,-1294.79,0.00024472,2]
[370038887,1751856648203,-685.74,0.00024472,2]
[370038888,1751856648213,-674.13,0.0002448,2]
[370038889,1751856648223,-1498.20536688,0.00024514,2]
[370038890,1751856648232,-159.4673789,0.00024521,2]
[370038891,1751856648242,-177.7370323,0.00024521,2]
[370038892,1751856648252,-159.4922776,0.00024521,2]
[370038893,1751856648261,-295.7647253,0.00024521,2]
[370038894,1751856648270,-357.4828093,0.00024521,2]
[370038895,1751856648280,-307.4988,0.00024521,2]
[370038896,1751856648289,-576.0368563,0.00024521,2]
[370038897,1751856648298,-2304.83774471,0.00024521,11]
[370038898,1751856648308,-215.0738,0.00024589,2]
[370038899,1751856648318,-823.0,0.00024595,2]
[370038900,1751856648327,-277.44715269,0.00024616,2]
[370038901,1751856648337,-600.0,0.00024616,2]
[370038902,1751856648346,-1498.20536688,0.00024637,2]
[370038903,1751856648356,-67549.28180866,0.00024651,2]
[370038904,1751856648365,-4073.83336167,0.00024651,2]
[370038905,1751856648375,-300.0,0.00024657,4]
[370038906,1751856648385,-300.0,0.00024657,4]
[370038907,1751856648396,-300.0,0.00024657,4]
[370038908,1751856648406,-300.0,0.00024657,4]
[370038909,1751856648415,-300.0,0.00024657,4]
[370038910,1751856648425,-300.0,0.00024657,4]
[370038911,1751856648435,-327.85232221,0.00024657,4]
[370038912,1751856648444,-200.0,0.00024657,2]
[370038913,1751856648454,-210.00855503,0.00024657,2]
[370038914,1751856648463,-380.0,0.00024658,2]
[370038915,1751856648472,-200.0,0.00024658,15]
[370038916,1751856648482,-466.0,0.00024658,2]
[370038917,1751856648491,-500.0,0.00024658,2]
[370038918,1751856648500,-500.0,0.00024658,2]
[370038919,1751856648510,-616.33482191,0.00024658,2]
[370038920,1751856648519,-466.0,0.00024685,2]
[370038921,1751856648529,-1002.92819425,0.00024712,2]
[370038922,1751856648538,-3600.0,0.00024712,2]
[370038923,1751856648548,-466.0,0.00024713,2]
[370038924,1751856648557,-562.51090363,0.00024714,2]
[370038925,1751856648566,-2250.04361452,0.00024714,2]
[370038926,1751856648575,-5057.53553454,0.00024714,2]
[370038927,1751856648584,-709.31912504,0.00024714,2]
[370038928,1751856648594,-2834.43922368,0.00024714,2]
[370038929,1751856648603,-710.87735729,0.00024714,2]
[370038930,1751856648612,-611.89,0.00024739,2]
[370038931,1751856648622,-634.33,0.00024739,2]
[370038932,1751856648631,-838.52,0.00024739,2]
[370038933,1751856648640,-1849.790396,0.0002474,5]
[370038934,1751856648649,-466.0,0.0002474,2]
[370038935,1751856648663,-786.58,0.00024742,2]
[370038936,1751856648673,-522.45,0.00024743,2]
[370038937,1751856648682,-1615.43,0.00024743,2]
[370038938,1751856648691,-252.89072987,0.00024743,2]
[370038939,1751856648701,-1294.79,0.00024746,2]
[370038940,1751856648710,-685.74,0.00024746,2]
[370038941,1751856648719,-3859.68986007,0.00024753,2]
[370038942,1751856648729,-674.13,0.00024754,2]
[370038943,1751856648739,-1498.20536688,0.00024759,2]
[370038944,1751856648748,-1000.0,0.0002476,5]
[370038945,1751856648757,-168.0,0.00024762,2]
[370038946,1751856648766,-466.0,0.00024768,2]
[370038947,1751856648775,-1000.0,0.0002478,5]
[370038948,1751856648785,-466.0,0.00024795,2]
[370038949,1751856648794,-2304.83774471,0.00024797,11]
[370038950,1751856648805,-2000.0,0.000248,2]
[370038951,1751856648935,-2000.0,0.000248,2]
[370038952,1751856648945,-2000.0,0.000248,2]
[370038953,1751856648955,-2000.0,0.000248,2]
[370038954,1751856648964,-1000.0,0.000248,5]
[370038955,1751856648974,-110058.143293,0.000248,2]
[370038956,1751856648983,-466.0,0.00024822,2]
[370038957,1751856648992,-238.40868167,0.00024825,7]
[370038958,1751856649002,-466.0,0.0002485,2]
[370038959,1751856649011,-1538.650875,0.00024855,4]
[370038960,1751856649021,-155.3900479,0.00024855,2]
[370038961,1751856649030,-168.0,0.00024856,2]
[370038962,1751856649039,-5000.0,0.00024864,2]
[370038963,1751856649048,-500.0,0.00024873,2]
[370038964,1751856649058,-466.0,0.00024877,2]
[370038965,1751856649067,-1498.20536688,0.00024882,2]
[370038966,1751856649076,-151.0,0.0002489,7]
[370038967,1751856649085,-238011.9546,0.00024899,4]
[370038968,1751856649095,-157.0,0.000249,3]
[370038969,1751856649104,-157.0,0.000249,3]
[370038970,1751856649116,-157.13838285,0.000249,3]
[370038971,1751856649126,-154.0,0.000249,3]
[370038972,1751856649135,-154.0,0.000249,3]
[370038973,1751856649145,-154.0,0.000249,3]
[370038974,1751856649154,-201.40044229,0.000249,3]
[370038975,1751856649164,-154.0,0.000249,3]
[370038976,1751856649173,-154.0,0.000249,3]
[370038977,1751856649182,-154.0,0.000249,3]
[370038978,1751856649192,-154.0,0.000249,3]
[370038979,1751856649202,-156.90230019,0.000249,3]
[370038980,1751856649212,-154.67956278,0.000249,3]
[370038981,1751856649222,-318.0,0.000249,3]
[370038982,1751856649232,-318.0,0.000249,3]
[370038983,1751856649241,-318.0,0.000249,3]
[370038984,1751856649250,-318.0,0.000249,3]
[370038985,1751856649261,-277.85783841,0.000249,3]
[370038986,1751856649270,-151.0,0.000249,7]
[370038987,1751856649280,-151.0,0.000249,7]
[370038988,1751856649290,-151.0,0.000249,7]
[370038989,1751856649299,-153.080685,0.000249,7]
[370038990,1751856649308,-190.028824,0.000249,7]
[370038991,1751856649318,-190.028824,0.000249,7]
[370038992,1751856649328,-151.0,0.000249,7]
[370038993,1751856649338,-151.542808,0.000249,7]
[370038994,1751856649349,-154.553547,0.000249,7]
[370038995,1751856649358,-4107.71664777,0.000249,2]
[370038996,1751856649368,-151.0,0.000249,7]
[370038997,1751856649377,-151.0,0.000249,7]
[370038998,1751856649387,-151.0,0.000249,7]
[370038999,1751856649396,-151.0,0.000249,7]
[370039000,1751856649406,-151.0,0.000249,7]
[370039001,1751856649415,-641.0,0.000249,2]
[370039002,1751856649425,-151.0,0.000249,7]
[370039003,1751856649434,-151.0,0.000249,7]
[370039004,1751856649444,-360.526276,0.000249,7]
[370039005,1751856649455,-360.526276,0.000249,7]
[370039006,1751856649464,-678823.431498,0.000249,2]
[370039007,1751856649474,-151.0,0.000249,3]
[370039008,1751856649483,-151.0,0.000249,7]
[370039009,1751856649493,-151.0,0.000249,7]
[370039010,1751856649502,-151.0,0.000249,7]
[370039011,1751856649512,-151.0,0.000249,7]
[370039012,1751856649522,-151.0,0.000249,7]
[370039013,1751856649531,-151.0,0.000249,7]
[370039014,1751856649541,-151.0,0.000249,7]
[370039015,1751856649550,-152.604587,0.000249,7]
[370039016,1751856649559,-392.562331,0.000249,7]
[370039017,1751856649570,-392.562331,0.000249,7]
[370039018,1751856649580,-166.455803,0.000249,7]
[370039019,1751856649589,-279.827697,0.000249,7]
[370039020,1751856649599,-166.455803,0.000249,7]
[370039021,1751856649608,-151.0,0.000249,2]
[370039022,1751856649617,-466.0,0.00024905,2]
[370039023,1751856649627,-2614.02,0.00024906,5]
[370039024,1751856649636,-168.0,0.00024921,2]
[370039025,1751856649645,-466.0,0.00024932,2]
[370039026,1751856649654,-209.0,0.0002494,2]
[370039027,1751856649668,-2625.02796488,0.0002495,2]
[370039028,1751856649755,-344.58413745,0.0002495,2]
[370039029,1751856649780,-178.43021668,0.00024517,2]
[370039030,1751856649789,-88.01459572,0.0002495,2]
[370039031,1751856650278,-460.0,0.00018727,2]
[370039032,1751856650287,-460.0,0.00019001,2]
[370039033,1751856650297,-460.0,0.00019275,2]
[370039034,1751856650306,-460.0,0.00019549,2]
[370039035,1751856650316,-460.0,0.0001981,2]
[370039036,1751856650326,-460.0,0.00019823,2]
[370039037,1751856650335,-598.74361773,0.00020084,2]
[370039038,1751856650345,-460.0,0.00020097,2]
[370039039,1751856650355,-2872.92433836,0.00020359,2]
[370039040,1751856650407,-787.5,0.00020359,2]
[370039041,1751856650422,-2952.45936885,0.00020359,2]
[370039042,1751856650433,-1531.55575804,0.00020359,2]
[370039043,1751856650445,-472.95933375,0.00020359,2]
[370039044,1751856650456,-351.59094771,0.00020359,2]
[370039045,1751856650853,-766.7941908,0.00020359,2]
[370039046,1751857115703,296.257366,0.00013699,2]
[370039047,1751857199329,156.01692783,0.000222,69]
[370039048,1751857370468,-291.76292611,0.00017694,2]
[370039049,1751857554115,-830.0,0.00017517,2]
[370039050,1751857554138,-115.98314148,0.00017694,2]
[370039051,1751857633086,-300.0,0.00017694,2]
[370039052,1751857633109,-601.92313938,0.00017695,2]
[370039053,1751857633130,-460.0,0.00017695,2]
[370039054,1751857633152,-460.0,0.00017695,2]
[370039055,1751857633173,-460.0,0.00017695,2]
[370039056,1751857633195,-111.17893503,0.00017695,2]
[370039057,1751857685799,150.0,0.00027,120]
[370039058,1751857745171,-336.90720848,0.00017695,2]
[370039059,1751857750226,-123.09279152,0.00017695,2]
[370039060,1751857750247,-460.0,0.00017969,2]
[370039061,1751857750270,-460.0,0.00018243,2]
[370039062,1751857750294,-460.0,0.00018516,2]
[370039063,1751857764185,-450.8,0.0001879,2]
[370039064,1751857796909,150.0,0.00027397,120]
[370039065,1751857810439,150.0,0.00027397,120]
[370039175,1751857837855,-9.2,0.0001879,2]
[370039176,1751857837867,-1333.42369154,0.000189,2]
[370039177,1751857837878,-460.0,0.00018985,2]
[370039178,1751857837898,-460.0,0.00018985,2]
[370039179,1751857837916,-460.0,0.00018985,2]
[370039180,1751857837929,-300.0,0.00018999,2]
[370039181,1751857837943,-4435.0,0.00019,2]
[370039182,1751857837957,-460.0,0.00019,2]
[370039184,1751857837969,-460.0,0.00019,2]
[370039186,1751857837982,-460.0,0.00019,2]
[370039187,1751857837997,-460.0,0.00019,2]
[370039188,1751857838011,-460.0,0.00019,2]
[370039189,1751857838023,-460.0,0.00019,2]
[370039190,1751857838036,-460.0,0.00019,2]
[370039191,1751857838048,-460.0,0.00019,2]
[370039192,1751857838060,-460.0,0.00019,2]
[370039193,1751857838073,-495.21482591,0.00019,2]
[370039194,1751857838085,-460.0,0.00019,2]
[370039195,1751857838098,-575.67751499,0.00019,2]
[370039196,1751857838110,-460.0,0.00019,2]
[370039197,1751857838119,-460.0,0.00019,2]
[370039198,1751857838129,-460.0,0.00019,2]
[370039199,1751857838139,-172.91686705,0.00019129,2]
[370039200,1751857838349,-468.04,0.00019177,2]
[370039201,1751857838364,-460.0,0.00019177,2]
[370039202,1751857838374,-460.0,0.00019177,2]
[370039203,1751857838384,-460.0,0.00019177,2]
[370039204,1751857838394,-666.0,0.00019178,2]
[370039205,1751857838404,-338.228434,0.00019178,2]
[370039206,1751857838414,-181.27285946,0.00019199,2]
[370039207,1751857838424,-500.0,0.00019199,2]
[370039208,1751857838434,-460.0,0.00019199,2]
[370039209,1751857838448,-460.0,0.00019199,2]
[370039210,1751857838457,-460.0,0.00019199,2]
[370039211,1751857838467,-460.0,0.00019199,2]
[370039212,1751857838476,-460.0,0.00019199,2]
[370039213,1751857838486,-460.0,0.00019199,2]
[370039214,1751857838495,-460.0,0.00019199,2]
[370039215,1751857838504,-235.3456282,0.00019199,2]
[370039216,1751857838514,-2000.0,0.000192,2]
[370039217,1751857838524,-2000.0,0.000192,3]
[370039218,1751857838533,-460.0,0.00019229,2]
[370039219,1751857838544,-581.15,0.00019229,2]
[370039220,1751857838554,-460.0,0.00019229,2]
[370039221,1751857838563,-460.0,0.00019229,2]
[370039222,1751857838573,-460.0,0.00019229,2]
[370039223,1751857838582,-460.0,0.00019229,2]
[370039224,1751857838593,-460.0,0.00019229,2]
[370039225,1751857838602,-460.0,0.00019229,2]
[370039226,1751857838611,-851.0,0.00019229,2]
[370039227,1751857838622,-460.0,0.00019229,2]
[370039228,1751857838631,-4725.15692881,0.00019229,2]
[370039229,1751857838641,-460.0,0.00019274,2]
[370039230,1751857838651,-460.0,0.00019274,2]
[370039231,1751857838661,-460.0,0.00019274,2]
[370039232,1751857838671,-460.0,0.00019274,2]
[370039233,1751857838681,-460.0,0.00019274,2]
[370039234,1751857838691,-460.0,0.00019274,2]
[370039235,1751857838701,-460.0,0.00019274,2]
[370039236,1751857838711,-460.0,0.00019274,2]
[370039237,1751857838720,-434.41239881,0.00019443,2]
[370039238,1751857838730,-460.0,0.00019451,2]
[370039239,1751857838740,-460.0,0.00019451,2]
[370039240,1751857838750,-460.0,0.00019451,2]
[370039241,1751857838760,-460.0,0.00019473,2]
[370039242,1751857838769,-348.82106497,0.00019473,2]
[370039243,1751857838779,-460.0,0.00019473,2]
[370039244,1751857838788,-460.0,0.00019473,2]
[370039245,1751857838797,-460.0,0.00019503,2]
[370039246,1751857838807,-581.15,0.00019503,2]
[370039247,1751857838816,-460.0,0.00019503,2]
[370039248,1751857838826,-460.0,0.00019503,2]
[370039249,1751857838836,-460.0,0.00019503,2]
[370039250,1751857838845,-851.0,0.00019503,2]
[370039251,1751857838855,-460.0,0.00019503,2]
[370039252,1751857838864,-500.0,0.00019535,2]
[370039253,1751857838874,-460.0,0.00019548,2]
[370039254,1751857838884,-460.0,0.00019548,2]
[370039255,1751857838896,-460.0,0.00019548,2]
[370039256,1751857838905,-460.0,0.00019548,2]
[370039257,1751857838918,-460.0,0.00019548,2]
[370039258,1751857838927,-460.0,0.00019548,2]
[370039259,1751857838937,-460.0,0.00019725,2]
[370039260,1751857838947,-460.0,0.00019725,2]
[370039261,1751857838958,-460.0,0.00019725,2]
[370039262,1751857838967,-581.15,0.00019776,2]
[370039263,1751857838977,-460.0,0.00019776,2]
[370039264,1751857838987,-460.0,0.00019776,2]
[370039265,1751857839000,-851.0,0.00019776,2]
[370039266,1751857839011,-460.0,0.00019776,2]
[370039267,1751857839020,-1000.0,0.000198,4]
[370039268,1751857839030,-1000.0,0.000198,5]
[370039269,1751857839039,-1000.0,0.000198,6]
[370039270,1751857839049,-460.0,0.00019806,2]
[370039271,1751857839058,-460.0,0.00019813,2]
[370039272,1751857839067,-460.0,0.00019813,2]
[370039273,1751857839078,-683.77,0.00019813,2]
[370039274,1751857839088,-460.0,0.00019813,2]
[370039275,1751857839097,-460.0,0.00019822,2]
[370039276,1751857839107,-460.0,0.00019822,2]
[370039277,1751857839117,-460.0,0.00019822,2]
[370039278,1751857839126,-460.0,0.00019822,2]
[370039279,1751857839136,-460.0,0.00019822,2]
[370039280,1751857839145,-460.0,0.00019822,2]
[370039281,1751857839155,-1317.09131766,0.000199,2]
[370039282,1751857839165,-500.0,0.00019914,2]
[370039283,1751857839175,-460.0,0.00019999,2]
[370039284,1751857839184,-460.0,0.00019999,2]
[370039285,1751857839194,-460.0,0.00019999,2]
[370039286,1751857839203,-581.15,0.0002005,2]
[370039287,1751857839213,-573.15,0.0002005,2]
[370039288,1751857839223,-460.0,0.0002005,2]
[370039289,1751857839233,-851.0,0.0002005,2]
[370039290,1751857839242,-460.0,0.0002005,2]
[370039291,1751857839253,-501.15289154,0.00020057,2]
[370039292,1751857839262,-500.0,0.00020083,2]
[370039293,1751857839272,-460.0,0.00020087,2]
[370039294,1751857839282,-460.0,0.00020087,2]
[370039295,1751857839292,-683.77,0.00020087,2]
[370039296,1751857839301,-460.0,0.00020087,2]
[370039297,1751857839311,-460.0,0.00020096,2]
[370039298,1751857839320,-460.0,0.00020096,2]
[370039299,1751857839330,-460.0,0.00020096,2]
[370039300,1751857839339,-405.45215504,0.00020096,2]
[370039301,1751857839349,-307.142648,0.00020096,2]
[370039302,1751857839359,-460.0,0.00020096,2]
[370039303,1751857839368,-1317.09131739,0.00020107,2]
[370039304,1751857839378,-296.257366,0.00020187,2]
[370039305,1751857839387,-501.06783131,0.00020264,2]
[370039306,1751857839396,-500.0,0.00020264,2]
[370039307,1751857839406,-460.0,0.00020273,2]
[370039308,1751857839415,-460.0,0.00020273,2]
[370039309,1751857839425,-460.0,0.00020273,2]
[370039310,1751857839434,-1317.09131739,0.00020314,3]
[370039311,1751857839444,-864.20533581,0.00020316,2]
[370039312,1751857839454,-581.15,0.00020324,2]
[370039313,1751857839463,-460.0,0.00020324,2]
[370039314,1751857839473,-851.0,0.00020324,2]
[370039315,1751857839482,-460.0,0.00020324,2]
[370039316,1751857839492,-500.0,0.00020358,2]
[370039317,1751857839502,-196.94698414,0.0002036,2]
[370039318,1751857839512,-460.0,0.00020361,2]
[370039319,1751857839522,-460.0,0.00020361,2]
[370039320,1751857839533,-683.77,0.00020361,2]
[370039321,1751857839543,-460.0,0.00020361,2]
[370039322,1751857839553,-460.0,0.0002037,2]
[370039323,1751857839564,-460.0,0.0002037,2]
[370039324,1751857839574,-460.0,0.0002037,2]
[370039325,1751857839583,-460.0,0.0002037,2]
[370039326,1751857839594,-1000.0,0.00020462,2]
[370039327,1751857839607,-1317.09131739,0.00020521,3]
[370039328,1751857839617,-460.0,0.00020547,2]
[370039329,1751857839628,-460.0,0.00020547,2]
[370039330,1751857839639,-460.0,0.00020547,2]
[370039331,1751857839648,-500.0,0.00020579,2]
[370039332,1751857839658,-581.15,0.00020598,2]
[370039333,1751857839667,-460.0,0.00020598,2]
[370039334,1751857839676,-851.0,0.00020598,2]
[370039335,1751857839685,-10427.97,0.00020609,10]
[370039336,1751857839695,-524.98484073,0.00020625,10]
[370039337,1751857839706,-17856.45,0.00020634,10]
[370039338,1751857839715,-507.65,0.00020635,2]
[370039339,1751857839724,-460.0,0.00020635,2]
[370039340,1751857839734,-683.77,0.00020635,2]
[370039342,1751857839743,-460.0,0.00020635,2]
[370039344,1751857839753,-460.0,0.00020644,2]
[370039346,1751857839763,-460.0,0.00020644,2]
[370039348,1751857839773,-460.0,0.00020644,2]
[370039349,1751857839782,-460.0,0.00020644,2]
[370039351,1751857839792,-160.0,0.00020659,2]
[370039353,1751857839802,-837.79946008,0.00020659,2]
[370039355,1751857839811,-160.0,0.00020659,2]
[370039357,1751857839820,-160.0,0.00020659,2]
[370039360,1751857839839,-214.06929976,0.00020659,2]
[370039362,1751857839850,-230.48668418,0.00020659,2]
[370039363,1751857839860,-215.21338352,0.00020659,2]
[370039365,1751857839870,-160.0,0.00020659,2]
[370039367,1751857839879,-848.27993403,0.00020659,2]
[370039369,1751857839889,-160.0,0.00020659,2]
[370039371,1751857839899,-12584.46609586,0.00020659,2]
[370039373,1751857839909,-420.0,0.00020709,2]
[370039375,1751857839919,-500.0,0.00020717,2]
[370039377,1751857839929,-1317.09131739,0.00020728,3]
[370039379,1751857839939,-518.998,0.0002078,2]
[370039381,1751857839949,-421.26,0.000208,7]
[370039382,1751857839959,-786.97115033,0.00020812,2]
[370039384,1751857839968,-460.0,0.00020821,2]
[370039386,1751857839978,-460.0,0.00020821,2]
[370039388,1751857839988,-517.49335127,0.00020821,2]
[370039390,1751857840003,-581.15,0.00020872,2]
[370039392,1751857840013,-460.0,0.00020872,2]
[370039394,1751857840023,-851.0,0.00020872,2]
[370039396,1751857840032,-460.0,0.00020909,2]
[370039398,1751857840042,-683.77,0.00020909,2]
[370039400,1751857840051,-252.89072987,0.00020909,2]
[370039401,1751857840061,-460.0,0.00020918,2]
[370039403,1751857840070,-460.0,0.00020918,2]
[370039405,1751857840080,-276.91691578,0.00020918,2]
[370039407,1751857840090,-460.0,0.00020918,2]
[370039409,1751857840100,-1317.09131739,0.00020934,4]
[370039411,1751857840110,-164.761905,0.00021,2]
[370039413,1751857840119,-4438.0,0.00021,2]
[370039415,1751857840129,-1500.0,0.0002101,2]
[370039417,1751857840138,-460.0,0.00021095,2]
[370039419,1751857840148,-460.0,0.00021095,2]
[370039420,1751857840158,-500.0,0.00021127,2]
[370039422,1751857840168,-1317.09131739,0.00021141,4]
[370039424,1751857840177,-581.15,0.00021146,2]
[370039426,1751857840187,-460.0,0.00021146,2]
[370039428,1751857840196,-851.0,0.00021146,2]
[370039430,1751857840206,-172.91686704,0.00021167,2]
[370039432,1751857840215,-500.0,0.00021176,2]
[370039434,1751857840225,-460.0,0.00021183,2]
[370039436,1751857840234,-683.77,0.00021183,2]
[370039438,1751857840244,-460.0,0.00021192,2]
[370039439,1751857840253,-460.0,0.00021192,2]
[370039441,1751857840263,-460.0,0.00021192,2]
[370039443,1751857840273,-1317.09131739,0.00021348,5]
[370039445,1751857840284,-460.0,0.00021369,2]
[370039447,1751857840293,-460.0,0.00021369,2]
[370039449,1751857840302,-848.27993403,0.00021394,10]
[370039451,1751857840311,-214.06929976,0.00021394,10]
[370039453,1751857840321,-12584.46609586,0.00021394,10]
[370039455,1751857840331,-500.0,0.00021404,2]
[370039456,1751857840340,-581.15,0.0002142,2]
[370039458,1751857840350,-460.0,0.0002142,2]
[370039460,1751857840361,-851.0,0.0002142,2]
[370039462,1751857840371,-500.0,0.00021453,2]
[370039464,1751857840381,-460.0,0.00021457,2]
[370039466,1751857840391,-683.77,0.00021457,2]
[370039468,1751857840401,-460.0,0.00021466,2]
[370039470,1751857840411,-460.0,0.00021466,2]
[370039472,1751857840420,-460.0,0.00021466,2]
[370039474,1751857840430,-500.0,0.00021502,2]
[370039476,1751857840439,-1317.09131739,0.00021555,5]
[370039478,1751857840450,-2000.0,0.00021558,2]
[370039479,1751857840459,-179.76630381,0.00021568,2]
[370039481,1751857840469,-500.0,0.000216,2]
[370039483,1751857840479,-588.32408869,0.00021643,2]
[370039485,1751857840488,-460.0,0.00021643,2]
[370039487,1751857840498,-581.15,0.00021694,2]
[370039489,1751857840508,-460.0,0.00021694,2]
[370039491,1751857840518,-851.0,0.00021694,2]
[370039493,1751857840528,-500.0,0.00021698,2]
[370039494,1751857840538,-460.0,0.00021731,2]
[370039496,1751857840548,-683.77,0.00021731,2]
[370039498,1751857840557,-460.0,0.0002174,2]
[370039500,1751857840567,-460.0,0.0002174,2]
[370039502,1751857840577,-460.0,0.0002174,2]
[370039504,1751857840586,-1317.09131739,0.00021762,5]
[370039506,1751857840596,-500.0,0.00021796,2]
[370039507,1751857840606,-500.0,0.00021894,2]
[370039509,1751857840616,-404.16347892,0.00021902,2]
[370039511,1751857840627,-274.20320046,0.00021917,2]
[370039513,1751857840637,-581.15,0.00021968,2]
[370039515,1751857840646,-460.0,0.00021968,2]
[370039517,1751857840656,-851.0,0.00021968,2]
[370039519,1751857840666,-1317.09131739,0.00021969,6]